[Event "8th Mersin Open 2024"]
[Site "Mersin"]
[Date "2024.11.11"]
[Round "3"]
[White "Sanz Wawer, Daniel"]
[Black "Aliyev, Ravan"]
[Result "1/2-1/2"]
[ECO "A48"]
[WhiteElo "2254"]
[BlackElo "2338"]
[Annotator "RC"]
[PlyCount "133"]
[EventDate "2024.11.10"]
[EventType "swiss"]
[EventCountry "TUR"]
[SourceTitle "playchess.com"]
[Source "ChessBase"]
[SourceQuality "1"]
[TimeControl "5400+30"]

1. d4 {[%emt 0:01:00]} Nf6 {[%emt 0:05:00]} 2. Nf3 {[%emt 0:00:00]} g6 {[%emt 0:01:30]} 3. Bf4 {[%emt 0:00:00]} Bg7 {[%emt 0:00:30]} 4. e3 {[%emt 0:00:30]} O-O {[%emt 0:00:00]} 5. h3 {[%emt 0:00:00]} c5 {[%emt 0:01:00]} 6. Nbd2 {[%emt 0:00:00]} cxd4 {[%emt 0:00:30]} 7. exd4 {[%emt 0:00:30]} Nc6 {[%emt 0:00:30]} 8. c3 {[%emt 0:05:30]} d6 {[%emt 0:05:30]} 9. Bh2 {[%emt 0:19:30]} e5 {[%emt 0:03:30]} 10. dxe5 {[%emt 0:00:30]} dxe5 {[%emt 0:00:30]} 11. Nc4 {[%emt 0:01:30]} Nd5 {[%emt 0:01:30]} 12. Qd2 {[%emt 0:18:30]} f6 {[%emt 0:15:30]} 13. Be2 {[%emt 0:05:30]} Be6 {[%emt 0:00:30]} 14. O-O {[%emt 0:00:30]} Qe7 {[%emt 0:00:30]} 15. Rad1 {[%emt 0:03:30]} Rfd8 {[%emt 0:06:30]} 16. Qc2 {[%emt 0:01:30]} Rac8 {[%emt 0:00:00]} 17. a4 {[%emt 0:00:30]} Bh6 {[%emt 0:06:00]} 18. Nfd2 {[%emt 0:04:30]} a6 {[%emt 0:12:30]} 19. a5 {[%emt 0:04:30]} Bf7 {[%emt 0:01:30]} 20. Qa4 {[%emt 0:03:30]} f5 {[%emt 0:00:30]} 21. Rfe1 {[%emt 0:02:30]} e4 {[%emt 0:03:30]} 22. Bf1 {[%emt 0:01:30]} Bf4 {[%emt 0:00:00]} 23. Bxf4 {[%emt 0:07:10]} Nxf4 {[%emt 0:00:00]} 24. Nb6 {[%emt 0:00:30]} Rb8 {[%emt 0:00:30]} 25. Ndc4 {[%emt 0:00:30]} Rxd1 {[%emt 0:00:30]} 26. Rxd1 {[%emt 0:00:30]} Rd8 {[%emt 0:00:30]} 27. b4 {[%emt 0:00:30]} Nd3 {[%emt 0:00:30]} 28. Qc2 {[%emt 0:00:30]} Nce5 {[%emt 0:00:30]} 29. Nxe5 {[%emt 0:00:30]} Nxe5 {[%emt 0:00:30]} 30. Rxd8+ {[%emt 0:00:30]} Qxd8 {[%emt 0:00:30]} 31. Qc1 {[%emt 0:08:48]} g5 {[%emt 0:26:22]} 32. Qe3 {[%emt 0:00:52]} Nd3 {[%emt 0:00:18]} 33. f3 {[%emt 0:02:38]} Bg6 {[%emt 0:00:05]} 34. fxe4 {[%emt 0:00:29]} fxe4 {[%emt 0:00:05]} 35. Nc4 {[%emt 0:01:16]} Qd5 {[%emt 0:03:28]} 36. Nd2 {[%emt 0:00:14]} Kg7 {[%emt 0:05:51]} 37. Bxd3 {[%emt 0:06:28]} exd3 {[%emt 0:00:30]} 38. Kf2 {[%emt 0:00:30]} Qf5+ {[%emt 0:00:30]} 39. Nf3 {[%emt 0:00:30]} h6 {[%emt 0:00:30]} 40. Ke1 {[%emt 0:00:30]} Qd5 {[%emt 0:00:30]} 41. Qd4+ {[%emt 0:00:30]} Qxd4 {[%emt 0:00:30]} 42. cxd4 {[%emt 0:00:30]} Kf6 {[%emt 0:00:30]} 43. Kd2 {[%emt 0:00:30]} Ke6 {[%emt 0:00:30]} 44. Ne5 {[%emt 0:00:30]} Be4 {[%emt 0:00:30]} 45. g3 {[%emt 0:00:30]} Kd5 {[%emt 0:00:30]} 46. Kc3 {[%emt 0:00:30]} d2 {[%emt 0:00:30]} 47. Kxd2 {[%emt 0:00:30]} Kxd4 {[%emt 0:00:30]} 48. Nf7 {[%emt 0:00:30]} Bg2 {[%emt 0:00:30]} 49. h4 {[%emt 0:00:30]} gxh4 {[%emt 0:00:30]} 50. gxh4 {[%emt 0:00:30]} h5 {[%emt 0:00:30]} 51. Nd6 {[%emt 0:00:30]} Ke5 {[%emt 0:00:30]} 52. Nc4+ {[%emt 0:00:30]} Kf4 {[%emt 0:00:31]} 53. Ke2 {[%emt 0:00:59]} Kg3 {[%emt 0:00:46]} 54. Nd6 {[%emt 0:01:17]} Bc6 {[%emt 0:01:38]} 55. Ke3 {[%emt 0:00:04]} Kg4 {[%emt 0:00:22]} 56. Nf7 {[%emt 0:00:39]} Kxh4 {[%emt 0:00:18]} 57. Kf4 {[%emt 0:00:24]} Kh3 {[%emt 0:00:14]} 58. Kg5 {[%emt 0:00:43]} Bf3 {[%emt 0:00:58]} 59. Nd6 {[%emt 0:00:31]} Kg3 {[%emt 0:00:26]} 60. Nf5+ {[%emt 0:00:26]} Kf2 {[%emt 0:00:21]} 61. Nd6 {[%emt 0:00:19]} Kg3 {[%emt 0:01:04]} 62. Nf5+ {[%emt 0:00:03]} Kg2 {[%emt 0:00:11]} 63. Kh4 {[%emt 0:00:49]} Kf2 {[%emt 0:00:28]} 64. Nd6 {[%emt 0:00:14]} Ke3 {[%emt 0:00:27]} 65. b5 {[%emt 0:01:12]} Kd4 {[%emt 0:00:25]} 66. Ne8 {[%emt 0:00:00]} Kc4 {[%emt 0:00:48]} 67. Nc7 {[%emt 0:00:00]} 1/2-1/2

[Event "8th Mersin Open 2024"]
[Site "Mersin"]
[Date "2024.11.11"]
[Round "3"]
[White "Abbasi Abeluie, Mohammad Mehdi"]
[Black "Baradaran Tamadon, Arian"]
[Result "1/2-1/2"]
[ECO "E05"]
[WhiteElo "2218"]
[BlackElo "2323"]
[Annotator "RC"]
[PlyCount "48"]
[EventDate "2024.11.10"]
[EventType "swiss"]
[EventCountry "TUR"]
[SourceTitle "playchess.com"]
[Source "ChessBase"]
[SourceQuality "1"]
[TimeControl "5400+30"]

1. c4 e6 2. g3 d5 3. Bg2 Nf6 4. Nf3 Be7 5. O-O O-O 6. d4 dxc4 7. Qc2 a6 8. a4 Bd7 9. Qxc4 Bc6 10. Bg5 Nbd7 11. Nc3 a5 12. Qd3 h6 13. Bxf6 Nxf6 14. e4 Nd7 15. Rfd1 Bb4 16. Rac1 Bxc3 17. Qxc3 Bxe4 18. Qxc7 Rc8 {[%emt 0:41:30]} 19. Qxd8 {[%emt 1:04:00]} Rfxd8 {[%emt 0:01:30]} 20. Ne5 {[%emt 0:00:00]} Bxg2 {[%emt 0:11:30]} 21. Kxg2 {[%emt 0:00:00]} Nb6 {[%emt 0:07:30]} 22. b3 {[%emt 0:02:30]} Nd5 {[%emt 0:14:30]} 23. Nc4 {[%emt 0:01:30]} b6 {[%emt 0:00:30]} 24. Ne3 {[%emt 0:00:30]} Kf8 {[%emt 0:08:28]} 1/2-1/2

[Event "8th Mersin Open 2024"]
[Site "Mersin"]
[Date "2024.11.11"]
[Round "3"]
[White "Zerey, Demhat"]
[Black "Ikonnikov, Vyacheslav"]
[Result "1/2-1/2"]
[ECO "A46"]
[WhiteElo "2194"]
[BlackElo "2465"]
[Annotator "RC"]
[PlyCount "79"]
[EventDate "2024.11.10"]
[EventType "swiss"]
[EventCountry "TUR"]
[SourceTitle "playchess.com"]
[Source "ChessBase"]
[SourceQuality "1"]
[TimeControl "5400+30"]

1. d4 {[%emt 0:03:00]} Nf6 {[%emt 0:01:00]} 2. Bf4 {[%emt 0:00:30]} d6 {[%emt 0:01:30]} 3. Nf3 {[%emt 0:00:30]} Nbd7 {[%emt 0:01:30]} 4. c3 {[%emt 0:03:30]} b6 {[%emt 0:03:30]} 5. Nbd2 {[%emt 0:02:30]} Bb7 {[%emt 0:00:30]} 6. e3 {[%emt 0:00:30]} Nh5 {[%emt 0:03:30]} 7. Bg5 {[%emt 0:02:30]} h6 {[%emt 0:00:30]} 8. Bh4 {[%emt 0:00:30]} g5 {[%emt 0:01:30]} 9. Bg3 {[%emt 0:00:00]} Bg7 {[%emt 0:00:30]} 10. Bd3 {[%emt 0:10:00]} e6 {[%emt 0:01:30]} 11. e4 {[%emt 0:03:30]} Nxg3 {[%emt 0:07:30]} 12. hxg3 {[%emt 0:00:30]} Qe7 {[%emt 0:02:30]} 13. Qe2 {[%emt 0:02:30]} a6 {[%emt 0:01:30]} 14. Nc4 {[%emt 0:09:30]} g4 {[%emt 0:21:30]} 15. Nfd2 {[%emt 0:10:30]} h5 {[%emt 0:00:30]} 16. O-O-O {[%emt 0:05:30]} O-O-O {[%emt 0:02:30]} 17. Ne3 {[%emt 0:05:30]} a5 {[%emt 0:06:30]} 18. Ba6 {[%emt 0:04:30]} Bh6 {[%emt 0:00:30]} 19. f4 {[%emt 0:05:30]} gxf3 {[%emt 0:01:30]} 20. Bxb7+ {[%emt 0:03:30]} Kxb7 {[%emt 0:00:30]} 21. gxf3 {[%emt 0:00:30]} Rdg8 {[%emt 0:04:30]} 22. Rh3 {[%emt 0:02:30]} Bxe3 {[%emt 0:05:30]} 23. Qxe3 {[%emt 0:00:30]} e5 {[%emt 0:00:30]} 24. d5 {[%emt 0:02:30]} Rg7 {[%emt 0:02:30]} 25. Rdh1 {[%emt 0:02:30]} Rhg8 {[%emt 0:00:30]} 26. Nf1 {[%emt 0:00:30]} Nf6 {[%emt 0:00:30]} 27. Qf2 {[%emt 0:00:30]} Qd7 {[%emt 0:01:30]} 28. Ne3 {[%emt 0:02:15]} Rg6 {[%emt 0:06:30]} 29. Ng2 {[%emt 0:05:46]} Ra8 {[%emt 0:03:33]} 30. Nh4 {[%emt 0:01:48]} Rgg8 {[%emt 0:00:30]} 31. Qd2 {[%emt 0:00:30]} a4 {[%emt 0:00:30]} 32. Nf5 {[%emt 0:00:30]} Ra5 {[%emt 0:01:09]} 33. Ne3 {[%emt 0:02:54]} a3 {[%emt 0:03:12]} 34. b3 {[%emt 0:00:30]} Raa8 {[%emt 0:00:28]} 35. Kd1 {[%emt 0:01:41]} Rg6 {[%emt 0:04:02]} 36. Ke1 {[%emt 0:01:02]} Ne8 {[%emt 0:00:34]} 37. Nf5 {[%emt 0:01:40]} Nf6 {[%emt 0:00:07]} 38. Ne3 {[%emt 0:00:39]} Ne8 {[%emt 0:00:41]} 39. Nf5 {[%emt 0:00:30]} Nf6 {[%emt 0:00:00]} 40. Ne3 {[%emt 0:00:00]} 1/2-1/2

[Event "8th Mersin Open 2024"]
[Site "Mersin"]
[Date "2024.11.11"]
[Round "3"]
[White "Kazimova, Narmin"]
[Black "Lobanov, Sergei"]
[Result "*"]
[ECO "D35"]
[WhiteElo "2155"]
[BlackElo "2503"]
[Annotator "TA"]
[PlyCount "63"]
[EventDate "2024.11.10"]
[EventType "swiss"]
[EventCountry "TUR"]
[SourceTitle "playchess.com"]
[Source "ChessBase"]
[SourceQuality "1"]
[TimeControl "5400+30"]

{[%evp 12,63,19,20,32,8,13,6,44,23,33,32,28,34,25,20,46,22,28,11,14,14,11,26,33,26,30,23,77,59,69,0,0,0,0,0,0,1,9,6,23,0,0,0,0,0,8,7,14,0,4,-72,0,0]} 1. c4 {[%emt 0:01:00]} e6 {[%emt 0:01:00]} 2. Nc3 {[%emt 0:00:30]} d5 {[%emt 0:00:00]} 3. d4 {[%emt 0:00:30]} Nf6 {[%emt 0:00:00]} 4. Nf3 {[%emt 0:00:30]} Nbd7 {[%emt 0:00:00]} 5. cxd5 {[%emt 0:02:30]} exd5 {[%emt 0:00:00]} 6. Bf4 {[%emt 0:00:00]} Bb4 {[%emt 0:02:30]} 7. e3 {[%emt 0:00:00]} c5 {[%emt 0:00:30]} 8. Qc2 {[%emt 0:12:30]} Qa5 {[%emt 0:01:30]} 9. a3 {[%emt 0:36:30]} c4 {[%emt 0:17:30]} 10. Rc1 {[%emt 0:02:30]} (10. axb4 Qxa1+ 11. Kd2 Nb6 $17) 10... Be7 {[%emt 0:10:30]} (10... Bxc3+ {simplifies} 11. Qxc3 Qxc3+ 12. bxc3 O-O) 11. Be2 {[%emt 0:01:30]} Ne4 {[%emt 0:04:30]} 12. O-O {[%emt 0:01:30][%cal Of4c7] [#] Black must now prevent Bc7!} Nxc3 {[%emt 0:00:00]} 13. bxc3 {[%emt 0:00:30]} ({Reject} 13. Qxc3 Qxc3 14. bxc3 Nf6 $15) 13... Nf6 {[%emt 0:00:00][%cal Oe8g8]} 14. Nd2 {[%emt 0:06:30]} O-O {[%emt 0:00:30]} 15. e4 {[%emt 0:05:30]} Nxe4 {[%emt 0:06:30]} 16. Nxe4 {[%emt 0:01:30]} dxe4 {[%emt 0:00:30]} 17. Bxc4 {[%emt 0:00:30]} (17. Qxe4 Bxa3 18. Ra1 Qxc3 $14) 17... Bf5 {[%emt 0:12:30][%cal Ob7b5]} 18. Qb3 {[%emt 0:00:00]} Rac8 {[%emt 0:03:30]} 19. a4 {[%emt 0:03:00][%cal Oc4d5]} (19. Qxb7 Bxa3 20. Qb3 (20. Qa6 Qxa6 21. Bxa6 Rc6 $17) 20... Bxc1 21. Rxc1 h6 $14) 19... b6 {[%emt 0:04:30]} (19... Ba3 $11 {keeps the balance.}) 20. Rfe1 {[%emt 0:05:26]} Bg6 {[%emt 0:03:30]} 21. Bd5 {[%emt 0:02:07]} (21. Bb5 $14) 21... Ba3 $1 $11 {[%emt 0:01:30]} 22. Qxa3 {[%emt 0:05:42]} Qxd5 {[%emt 0:00:30]} 23. a5 {[%emt 0:00:43]} Rc6 {[%emt 0:02:30]} 24. axb6 {[%emt 0:02:03]} axb6 {[%emt 0:00:30]} 25. Qb4 {[%emt 0:03:22]} h5 {[%emt 0:03:30]} 26. Be3 {[%emt 0:00:30]} b5 {[%emt 0:02:30]} 27. Rb1 {[%emt 0:02:16][%cal Oe1c1,Bc1b1,Bb1a1,Ba1a6][%mdl 32]} Rb8 {[%emt 0:00:30]} 28. Bf4 {[%emt 0:00:30]} Rb7 {[%emt 0:00:30][%cal Oe4e3]} 29. Ra1 {[%emt 0:00:30]} Rc8 {[%emt 0:00:30] Against Ra8. Black is weak on the dark squares} 30. Ra6 {[%emt 0:01:35]} Kh7 {[%emt 0:03:34]} 31. Qa5 {[%emt 0:03:55]} (31. h3 $11) 31... h4 {[%emt 0:04:31]} (31... Qc4 $17 32. h4 Qxc3) 32. h3 {[%emt 0:00:30] Weighted Error Value: White=0.13 (very precise) /Black=0.12 (very precise) .  Mistake:       	White=2     	Black=2      Inaccurate:     	---       	Black=2      OK:         	White=8     	Black=9      Best:        	---       	Black=1      Strong:       	---       	Black=1} *

[Event "8th Mersin Open 2024"]
[Site "Mersin"]
[Date "2024.11.11"]
[Round "3"]
[White "Bayramov, Vugar"]
[Black "Turker, Esat Tuna"]
[Result "1/2-1/2"]
[ECO "A84"]
[WhiteElo "2133"]
[BlackElo "2050"]
[Annotator "NA RC"]
[PlyCount "98"]
[EventDate "2024.11.10"]
[EventType "swiss"]
[EventCountry "TUR"]
[SourceTitle "playchess.com"]
[Source "ChessBase"]
[SourceQuality "1"]
[TimeControl "5400+30"]

1. d4 {[%emt 0:01:00]} e6 {[%emt 0:01:00]} 2. Nf3 {[%emt 0:00:00]} f5 {[%emt 0:00:30]} 3. g3 {[%emt 0:00:00]} b6 {[%emt 0:00:00]} 4. Bg2 {[%emt 0:00:30]} Bb7 {[%emt 0:00:00]} 5. O-O {[%emt 0:00:30]} Nf6 {[%emt 0:00:30]} 6. c4 {[%emt 0:00:00]} g6 {[%emt 0:01:30]} 7. Nc3 {[%emt 0:01:00]} Bg7 {[%emt 0:00:30]} 8. d5 {[%emt 0:15:30]} Na6 {[%emt 0:04:30]} 9. e4 {[%emt 0:09:30]} O-O $14 {[%emt 0:29:30]} 10. exf5 {[%emt 0:08:30]} exf5 {[%emt 0:03:30]} 11. Nd4 {[%emt 0:07:30]} Re8 {[%emt 0:06:30]} 12. a3 {[%emt 0:11:30]} Nc5 {[%emt 0:03:30]} 13. Bg5 {[%emt 0:03:30]} h6 {[%emt 0:04:30]} 14. Bf4 {[%emt 0:04:30]} a6 {[%emt 0:09:30]} 15. b4 {[%emt 0:05:30]} Nce4 {[%emt 0:00:30]} 16. Nxe4 {[%emt 0:08:30]} Nxe4 {[%emt 0:03:30]} 17. Rc1 {[%emt 0:00:30]} c5 {[%emt 0:05:30]} 18. bxc5 {[%emt 0:11:13]} bxc5 {[%emt 0:00:30]} 19. Ne2 {[%emt 0:00:19]} d6 {[%emt 0:08:32]} 20. Be3 {[%emt 0:00:41]} g5 {[%emt 0:01:32]} 21. Rb1 {[%emt 0:03:19]} Bc8 {[%emt 0:00:52]} 22. Qb3 {[%emt 0:02:05]} Bd7 {[%emt 0:04:28]} 23. Qb6 {[%emt 0:01:11]} Ba4 {[%emt 0:03:37]} 24. Qxd8 {[%emt 0:00:46]} Rexd8 {[%emt 0:01:32]} 25. Bh3 {[%emt 0:01:17]} g4 {[%emt 0:04:16]} 26. Bg2 {[%emt 0:00:00]} Rab8 {[%emt 0:00:43]} 27. Nf4 {[%emt 0:00:01]} Bc2 {[%emt 0:01:04]} 28. Rbc1 {[%emt 0:00:11]} Rb2 {[%emt 0:00:55]} 29. Ne6 {[%emt 0:00:30]} Rdb8 {[%emt 0:00:30]} 30. Bf4 {[%emt 0:00:30]} R8b6 {[%emt 0:00:30]} 31. f3 {[%emt 0:00:30]} gxf3 {[%emt 0:00:30]} 32. Bxf3 {[%emt 0:00:35]} Bd3 {[%emt 0:00:44]} 33. Rfe1 {[%emt 0:00:18]} Ra2 {[%emt 0:00:24]} 34. g4 {[%emt 0:00:30]} Ng5 {[%emt 0:00:30]} 35. Bxg5 {[%emt 0:00:30]} hxg5 {[%emt 0:00:30]} 36. Nxg7 {[%emt 0:00:30]} Kxg7 {[%emt 0:00:30]} 37. Re7+ {[%emt 0:00:30]} Kf8 {[%emt 0:00:30]} 38. Re6 {[%emt 0:00:30]} f4 {[%emt 0:00:30]} 39. Rce1 {[%emt 0:00:30]} Rb1 {[%emt 0:00:35]} 40. Rxb1 {[%emt 0:01:01]} Bxb1 {[%emt 0:00:35]} 41. Rxd6 {[%emt 0:00:30]} Rxa3 {[%emt 0:00:00]} 42. Be2 {[%emt 0:00:09]} Ke7 {[%emt 0:00:11]} 43. Rb6 {[%emt 0:00:05]} Bd3 {[%emt 0:01:05]} 44. Bxd3 {[%emt 0:01:34]} Rxd3 {[%emt 0:00:06]} 45. Rc6 {[%emt 0:01:55]} a5 {[%emt 0:00:40]} 46. Rxc5 {[%emt 0:02:01]} a4 {[%emt 0:00:19]} 47. Ra5 {[%emt 0:00:58]} a3 {[%emt 0:00:12]} 48. Kf1 {[%emt 0:00:48]} Kd6 {[%emt 0:00:35]} 49. Kg2 {[%emt 0:00:56]} Ke7 {[%emt 0:00:49]} 1/2-1/2

[Event "8th Mersin Open 2024"]
[Site "Mersin"]
[Date "2024.11.11"]
[Round "3"]
[White "Mohannad, Farhan"]
[Black "Golshaani, Taha"]
[Result "1/2-1/2"]
[ECO "D85"]
[WhiteElo "2115"]
[BlackElo "2026"]
[Annotator "NA RC"]
[PlyCount "69"]
[EventDate "2024.11.10"]
[EventType "swiss"]
[EventCountry "TUR"]
[SourceTitle "playchess.com"]
[Source "ChessBase"]
[SourceQuality "1"]
[TimeControl "5400+30"]

1. d4 {[%emt 0:01:00]} Nf6 {[%emt 0:07:00]} 2. c4 {[%emt 0:00:00]} g6 {[%emt 0:00:30]} 3. Nc3 {[%emt 0:00:00]} d5 {[%emt 0:00:30]} 4. cxd5 {[%emt 0:00:30]} Nxd5 {[%emt 0:00:30]} 5. e4 {[%emt 0:00:30]} Nxc3 {[%emt 0:00:30]} 6. bxc3 {[%emt 0:00:00]} Bg7 {[%emt 0:00:00]} 7. Nf3 {[%emt 0:00:00]} c5 {[%emt 0:00:00]} 8. Rb1 {[%emt 0:00:00]} O-O {[%emt 0:00:30]} 9. Be2 {[%emt 0:00:00]} cxd4 {[%emt 0:00:00]} 10. cxd4 {[%emt 0:00:30]} Qa5+ {[%emt 0:00:00]} 11. Qd2 {[%emt 0:00:00]} Qxd2+ {[%emt 0:00:00]} 12. Bxd2 {[%emt 0:00:00]} b6 {[%emt 0:02:00]} 13. O-O {[%emt 0:00:00]} e6 {[%emt 0:00:00]} 14. Bc4 {[%emt 0:19:00]} Bb7 {[%emt 0:02:00]} 15. Rfe1 {[%emt 0:00:30]} Nd7 {[%emt 0:02:30]} 16. a4 {[%emt 0:06:30]} a6 $11 {[%emt 0:17:30]} 17. d5 {[%emt 0:05:30]} exd5 {[%emt 0:13:30]} 18. Bxd5 {[%emt 0:02:30]} Bxd5 {[%emt 0:00:30]} 19. exd5 {[%emt 0:00:30]} Rfd8 {[%emt 0:12:30]} 20. Bg5 {[%emt 0:04:30]} Bf6 {[%emt 0:01:30]} 21. Be3 {[%emt 0:05:30]} Rab8 {[%emt 0:05:30]} 22. Rec1 {[%emt 0:01:30]} Ne5 {[%emt 0:03:30]} 23. Nxe5 {[%emt 0:02:30]} Bxe5 {[%emt 0:00:00]} 24. f4 {[%emt 0:03:30]} Bf6 {[%emt 0:11:00]} 25. Rc6 {[%emt 0:01:30]} Be7 {[%emt 0:00:30]} 26. Rcxb6 {[%emt 0:01:30]} Rxb6 {[%emt 0:01:30]} 27. Rxb6 {[%emt 0:00:30]} Rxd5 {[%emt 0:00:00]} 28. Rxa6 {[%emt 0:00:30]} Bc5 {[%emt 0:01:00]} 29. Bxc5 {[%emt 0:01:30]} Rxc5 {[%emt 0:00:00]} 30. h3 {[%emt 0:09:30]} h5 {[%emt 0:01:00]} 31. Kf2 {[%emt 0:01:30]} Rc3 {[%emt 0:00:30]} 32. f5 {[%emt 0:00:30]} g5 {[%emt 0:01:43]} 33. a5 {[%emt 0:01:30]} Ra3 {[%emt 0:01:07]} 34. Ra8+ {[%emt 0:04:30]} Kg7 {[%emt 0:00:39]} 35. Ra6 {[%emt 0:00:30]} 1/2-1/2

[Event "8th Mersin Open 2024"]
[Site "Mersin"]
[Date "2024.11.11"]
[Round "3"]
[White "Topuz, Mirac Melih"]
[Black "Dogan, Nazmi Can"]
[Result "1-0"]
[ECO "E16"]
[WhiteElo "2097"]
[BlackElo "2218"]
[Annotator "RC"]
[PlyCount "85"]
[EventDate "2024.11.10"]
[EventType "swiss"]
[EventCountry "TUR"]
[SourceTitle "playchess.com"]
[Source "ChessBase"]
[SourceQuality "1"]
[TimeControl "5400+30"]

1. d4 {[%emt 0:04:00]} Nf6 {[%emt 0:01:00]} 2. c4 {[%emt 0:00:00]} e6 {[%emt 0:00:00]} 3. g3 {[%emt 0:00:00]} Bb4+ {[%emt 0:08:00]} 4. Nd2 {[%emt 0:00:30]} d5 {[%emt 0:03:30]} 5. Bg2 {[%emt 0:00:30]} O-O {[%emt 0:00:00]} 6. Ngf3 {[%emt 0:00:00]} b6 {[%emt 0:03:00]} 7. O-O {[%emt 0:01:00]} Bb7 {[%emt 0:00:30]} 8. a3 {[%emt 0:03:30]} Be7 {[%emt 0:01:30]} 9. cxd5 {[%emt 0:00:30]} exd5 {[%emt 0:01:30]} 10. Qc2 {[%emt 0:00:30]} c5 {[%emt 0:09:30]} 11. Rd1 {[%emt 0:10:30]} Nbd7 {[%emt 0:04:30]} 12. Nb1 {[%emt 0:11:30]} Ne4 {[%emt 0:08:30]} 13. Nc3 {[%emt 0:02:30]} Ndf6 {[%emt 0:01:30]} 14. Nxe4 {[%emt 0:10:30]} Nxe4 {[%emt 0:06:30]} 15. Be3 {[%emt 0:06:30]} c4 {[%emt 0:09:30]} 16. Ne5 {[%emt 0:08:30]} Nd6 {[%emt 0:07:30]} 17. Bf4 {[%emt 0:07:30]} b5 {[%emt 0:04:30]} 18. h4 {[%emt 0:03:30]} Re8 {[%emt 0:03:30]} 19. Bh3 {[%emt 0:08:54]} Bf8 {[%emt 0:07:23]} 20. h5 {[%emt 0:04:41]} Bc8 {[%emt 0:05:12]} 21. Bg2 {[%emt 0:03:02]} Bb7 {[%emt 0:04:30]} 22. Bh3 {[%emt 0:00:30]} Bc8 {[%emt 0:00:30]} 23. Bg2 {[%emt 0:01:54]} Bf5 {[%emt 0:02:26]} 24. Qc1 {[%emt 0:00:11]} Be6 {[%emt 0:02:44]} 25. h6 {[%emt 0:02:10]} g6 {[%emt 0:00:30]} 26. Nc6 {[%emt 0:03:22]} Qd7 {[%emt 0:00:08]} 27. Nb4 {[%emt 0:01:26]} Nc8 {[%emt 0:02:03]} 28. Na6 {[%emt 0:03:14]} Bd6 {[%emt 0:00:58]} 29. e4 {[%emt 0:00:30]} Nb6 {[%emt 0:00:30]} 30. Re1 {[%emt 0:00:30]} Rac8 {[%emt 0:00:57]} 31. Nc5 {[%emt 0:01:25]} Bxc5 {[%emt 0:01:09]} 32. dxc5 {[%emt 0:00:30]} Rxc5 {[%emt 0:00:30]} 33. exd5 {[%emt 0:00:30]} Nxd5 {[%emt 0:00:30]} 34. Be5 {[%emt 0:00:30]} f6 {[%emt 0:00:30]} 35. Bd4 {[%emt 0:00:30]} Rc6 {[%emt 0:00:30]} 36. Qc2 {[%emt 0:00:30]} Bf7 {[%emt 0:00:30]} 37. Rxe8+ {[%emt 0:02:34]} Bxe8 {[%emt 0:00:07]} 38. Rd1 {[%emt 0:00:17]} Bf7 {[%emt 0:00:05]} 39. Bxa7 {[%emt 0:00:45]} Rd6 {[%emt 0:02:03]} 40. Bc5 {[%emt 0:00:31]} Rc6 {[%emt 0:00:48]} 41. Bb4 {[%emt 0:00:25]} Be6 {[%emt 0:00:35]} 42. Bxd5 {[%emt 0:00:38]} Bxd5 {[%emt 0:00:30]} 43. Qd2 {[%emt 0:00:00]} 1-0

[Event "8th Mersin Open 2024"]
[Site "Mersin"]
[Date "2024.11.11"]
[Round "3"]
[White "Uzdemir, Ali Poyraz"]
[Black "Zahedifar, Anahita"]
[Result "1/2-1/2"]
[ECO "C10"]
[WhiteElo "2081"]
[BlackElo "2008"]
[Annotator "NA RC"]
[PlyCount "55"]
[EventDate "2024.11.10"]
[EventType "swiss"]
[EventCountry "TUR"]
[SourceTitle "playchess.com"]
[Source "ChessBase"]
[SourceQuality "1"]
[TimeControl "5400+30"]

1. e4 {[%emt 0:01:00]} e6 {[%emt 0:01:00]} 2. d4 {[%emt 0:00:30]} d5 {[%emt 0:00:30]} 3. Nc3 {[%emt 0:00:30]} a6 {[%emt 0:00:30]} 4. Nf3 {[%emt 0:00:30]} Nf6 {[%emt 0:00:30]} 5. Bd3 {[%emt 0:00:30]} c5 {[%emt 0:06:30]} 6. exd5 {[%emt 0:05:30]} exd5 {[%emt 0:00:30]} 7. Bg5 {[%emt 0:06:30]} Be6 {[%emt 0:02:30]} 8. O-O {[%emt 0:04:30]} Nc6 {[%emt 0:04:30]} 9. Re1 {[%emt 0:06:30]} Be7 {[%emt 0:04:30]} 10. dxc5 {[%emt 0:07:30]} O-O $16 {[%emt 0:02:30]} 11. Ne2 {[%emt 0:06:30]} Bxc5 {[%emt 0:13:30]} 12. Nf4 {[%emt 0:00:30]} Re8 {[%emt 0:01:30]} 13. c3 {[%emt 0:02:30]} Qd6 {[%emt 0:06:30]} 14. Qd2 {[%emt 0:07:30]} Ng4 {[%emt 0:04:30]} 15. Bh4 {[%emt 0:03:30]} Nce5 {[%emt 0:01:30]} 16. Nxe5 {[%emt 0:03:30]} Nxe5 {[%emt 0:04:30]} 17. Bg3 {[%emt 0:01:30]} Nxd3 {[%emt 0:03:30]} 18. Nxd3 {[%emt 0:00:30]} Qb6 {[%emt 0:00:30]} 19. Nxc5 {[%emt 0:00:30]} Qxc5 {[%emt 0:00:30]} 20. Be5 {[%emt 0:00:00]} Bf5 {[%emt 0:01:30]} 21. Bd4 {[%emt 0:03:00]} Qc6 {[%emt 0:00:30]} 22. Qf4 {[%emt 0:00:30]} Bg6 {[%emt 0:01:30]} 23. f3 {[%emt 0:04:30]} f6 {[%emt 0:03:30]} 24. Qd2 {[%emt 0:06:30]} Rad8 {[%emt 0:03:30]} 25. Rxe8+ {[%emt 0:03:30]} Rxe8 {[%emt 0:00:30]} 26. Re1 {[%emt 0:00:00]} Rxe1+ {[%emt 0:03:30]} 27. Qxe1 {[%emt 0:00:00]} Kf7 {[%emt 0:00:00]} 28. Kf2 {[%emt 0:02:30]} 1/2-1/2

[Event "8th Mersin Open 2024"]
[Site "Mersin"]
[Date "2024.11.11"]
[Round "3"]
[White "Saygin, Nurettin"]
[Black "Yermolinsky, Alex"]
[Result "0-1"]
[ECO "E11"]
[WhiteElo "2066"]
[BlackElo "2417"]
[Annotator "RC"]
[PlyCount "64"]
[EventDate "2024.11.10"]
[EventType "swiss"]
[EventCountry "TUR"]
[SourceTitle "playchess.com"]
[Source "ChessBase"]
[SourceQuality "1"]
[TimeControl "5400+30"]

1. d4 {[%emt 0:01:00]} Nf6 {[%emt 0:01:00]} 2. c4 {[%emt 0:00:00]} e6 {[%emt 0:00:30]} 3. Nf3 {[%emt 0:00:00]} Bb4+ {[%emt 0:04:30]} 4. Bd2 {[%emt 0:01:30]} c5 {[%emt 0:02:30]} 5. Bxb4 {[%emt 0:02:30]} cxb4 {[%emt 0:00:30]} 6. Nbd2 {[%emt 0:01:30]} O-O {[%emt 0:01:30]} 7. e3 {[%emt 0:04:30]} d6 {[%emt 0:03:30]} 8. Be2 {[%emt 0:01:30]} b6 {[%emt 0:04:30]} 9. O-O {[%emt 0:02:30]} Bb7 {[%emt 0:02:30]} 10. Qc2 {[%emt 0:01:30]} Qe7 {[%emt 0:04:30]} 11. Rac1 {[%emt 0:03:30]} Nbd7 {[%emt 0:01:30]} 12. Rfd1 {[%emt 0:04:30]} e5 {[%emt 0:02:30]} 13. d5 {[%emt 0:03:30]} Nc5 {[%emt 0:01:30]} 14. Nf1 {[%emt 0:05:30]} Bc8 {[%emt 0:02:30]} 15. h3 {[%emt 0:00:30]} Bd7 {[%emt 0:05:30]} 16. Ng3 {[%emt 0:05:30]} g6 {[%emt 0:00:30]} 17. e4 {[%emt 0:02:30]} a5 {[%emt 0:00:30]} 18. Bd3 {[%emt 0:02:30]} Kg7 {[%emt 0:03:30]} 19. Qd2 {[%emt 0:01:30]} h6 {[%emt 0:02:30]} 20. Nh2 {[%emt 0:02:30]} Nh7 {[%emt 0:04:30]} 21. Bb1 {[%emt 0:04:30]} Qg5 {[%emt 0:00:30]} 22. Qe2 {[%emt 0:00:30]} h5 {[%emt 0:01:30]} 23. Kh1 {[%emt 0:09:30]} Nf6 {[%emt 0:03:30]} 24. Qe3 {[%emt 0:04:30]} Qxe3 {[%emt 0:00:30]} 25. fxe3 {[%emt 0:00:00]} h4 {[%emt 0:00:30]} 26. Ne2 {[%emt 0:01:00]} Nfxe4 {[%emt 0:00:00]} 27. Rf1 {[%emt 0:01:30]} Nd2 {[%emt 0:03:00]} 28. Rfd1 {[%emt 0:00:30]} Nxb1 {[%emt 0:01:30]} 29. Rxb1 {[%emt 0:00:30]} Bf5 {[%emt 0:00:00]} 30. Ra1 {[%emt 0:02:30]} Bd3 {[%emt 0:00:00]} 31. Ng1 {[%emt 0:00:30]} Ne4 {[%emt 0:02:30]} 32. Ng4 {[%emt 0:00:30]} f5 {[%emt 0:00:30]} 0-1